Workbook

Sheet Mittelhilfstabelle
A2: Stunde | B2: Wind | C2: Luftfeuchtigkeit | D2: Luftdruck | E2: Taupunkttemperatur | F2: Bewölkung | H2: Stunde | I2: Wind | J2: Luftfeuchtigkeit | K2: Luftdruck | L2: Taupunkttemperatur | M2: Bewölkung
A3: 00 | B3: 1 | C3: 89 | D3: 1026.1 | E3: -0.7 | F3: 7 | H3: 00 | I3: 3 | J3: 67 | K3: 1023.2 | L3: 2.2 | M3: 7
A4: 01 | B4: 1 | C4: 91 | D4: 1025.9 | E4: -0.6 | F4: 7 | H4: 01 | I4: 3 | J4: 69 | K4: 1022.5 | L4: 2.1 | M4: 6
A5: 02 | B5: 0 | C5: 91 | D5: 1025.6 | E5: -0.5 | F5: 7 | H5: 02 | I5: 3 | J5: 71 | K5: 1021.7 | L5: 1.9 | M5: 6
A6: 03 | B6: 1 | C6: 91 | D6: 1025.9 | E6: -0.4 | F6: 5 | H6: 03 | I6: 4 | J6: 72 | K6: 1021.1 | L6: 2 | M6: 6
A7: 04 | B7: 1 | C7: 89 | D7: 1025.6 | E7: -0.5 | F7: 1 | H7: 04 | I7: 1 | J7: 75 | K7: 1020.6 | L7: 2.2 | M7: 7
A8: 05 | B8: 1 | C8: 89 | D8: 1025.6 | E8: -1.1 | F8: 5 | H8: 05 | I8: 1 | J8: 80 | K8: 1020.4 | L8: 2.1 | M8: 7
A9: 06 | B9: 0 | C9: 89 | D9: 1025.9 | E9: -1 | F9: 2 | H9: 06 | I9: 2 | J9: 83 | K9: 1019.3 | L9: 2.5 | M9: 8
A10: 07 | B10: 1 | C10: 88 | D10: 1025.9 | E10: -1.5 | F10: 1 | H10: 07 | I10: 2 | J10: 84 | K10: 1018.3 | L10: 2.9 | M10: 8
A11: 08 | B11: 1 | C11: 90 | D11: 1025.9 | E11: -0.9 | F11: 1 | H11: 08 | I11: 1 | J11: 84 | K11: 1017.5 | L11: 2.7 | M11: 7
A12: 09 | B12: 2 | C12: 90 | D12: 1025.8 | E12: 0.7 | F12: 0 | H12: 09 | I12: 1 | J12: 84 | K12: 1016.5 | L12: 3.6 | M12: 7
A13: 10 | B13: 2 | C13: 73 | D13: 1025.4 | E13: 1 | F13: 1 | H13: 10 | I13: 2 | J13: 76 | K13: 1015.4 | L13: 3.9 | M13: 7
A14: 11 | B14: 3 | C14: 53 | D14: 1024.9 | E14: -1.5 | F14: 6 | H14: 11 | I14: 2 | J14: 76 | K14: 1015 | L14: 4.1 | M14: 7
A15: 12 | B15: 2 | C15: 49 | D15: 1025 | E15: -1.5 | F15: 7 | H15: 12 | I15: 2 | J15: 78 | K15: 1014.1 | L15: 3.8 | M15: 7
A16: 13 | B16: 2 | C16: 48 | D16: 1024.5 | E16: -1 | F16: 7 | H16: 13 | I16: 1 | J16: 79 | K16: 1012.4 | L16: 3.5 | M16: 7
A17: 14 | B17: 2 | C17: 48 | D17: 1024 | E17: -0.2 | F17: 7 | H17: 14 | I17: 1 | J17: 78 | K17: 1011.1 | L17: 3.5 | M17: 7
A18: 15 | B18: 2 | C18: 45 | D18: 1023.2 | E18: -0.5 | F18: 7 | H18: 15 | I18: 2 | J18: 72 | K18: 1009.6 | L18: 3.1 | M18: 7
A19: 16 | B19: 2 | C19: 50 | D19: 1023.1 | E19: 0.4 | F19: 7 | H19: 16 | I19: 1 | J19: 71 | K19: 1009 | L19: 3 | M19: 8
A20: 17 | B20: 1 | C20: 51 | D20: 1023.2 | E20: 0.4 | F20: 7 | H20: 17 | I20: 3 | J20: 71 | K20: 1007.4 | L20: 2.9 | M20: 8
A21: 18 | B21: 2 | C21: 56 | D21: 1023.1 | E21: 1.4 | F21: 6 | H21: 18 | I21: 3 | J21: 69 | K21: 1006.7 | L21: 3.3 | M21: 8
A22: 19 | B22: 1 | C22: 65 | D22: 1023.3 | E22: 1.2 | F22: 7 | H22: 19 | I22: 3 | J22: 80 | K22: 1006.5 | L22: 4.8 | M22: 8
A23: 20 | B23: 1 | C23: 70 | D23: 1023.6 | E23: 1.2 | F23: 7 | H23: 20 | I23: 3 | J23: 80 | K23: 1005.6 | L23: 4.7 | M23: 8
A24: 21 | B24: 1 | C24: 73 | D24: 1023.8 | E24: 1.4 | F24: 7 | H24: 21 | I24: 3 | J24: 85 | K24: 1005.6 | L24: 4.9 | M24: 8
A25: 22 | B25: 2 | C25: 69 | D25: 1023.8 | E25: 2 | F25: 8 | H25: 22 | I25: 3 | J25: 87 | K25: 1005 | L25: 4.6 | M25: 8
A26: 23 | B26: 2 | C26: 66 | D26: 1023.5 | E26: 2 | F26: 7 | H26: 23 | I26: 3 | J26: 84 | K26: 1005 | L26: 4.2 | M26: 8
A27: Mittel | B27: =ROUND(AVERAGE(B3:B26),1) -> 1.4 | C27: =ROUND(AVERAGE(C3:C26),1) -> 71.4 | D27: =ROUND(AVERAGE(D3:D26),1) -> 1024.7 | E27: =AVERAGE(E3:E26) -> -0.008333333333 | F27: =ROUND(AVERAGE(F3:F26),1) -> 5.3 | H27: Mittel | I27: =ROUND(AVERAGE(I3:I26),1) -> 2.2 | J27: =ROUND(AVERAGE(J3:J26),1) -> 77.3 | K27: =ROUND(AVERAGE(K3:K26),1) -> 1013.7 | L27: =AVERAGE(L3:L26) -> 3.270833333 | M27: =ROUND(AVERAGE(M3:M26),1) -> 7.3
E29: 2016-01-29 | L29: 2016-01-30
A32: Stunde | B32: Wind | C32: Luftfeuchtigkeit | D32: Luftdruck | E32: Taupunkttemperatur | F32: Bewölkung | H32: Stunde | I32: Wind | J32: Luftfeuchtigkeit | K32: Luftdruck | L32: Taupunkttemperatur | M32: Bewölkung
A33: 00 | B33: 3 | C33: 86 | D33: 1005.6 | E33: 3.6 | F33: 8 | H33: 00 | I33: 2 | J33: 86 | K33: 1007.6 | L33: 3.3 | M33: 8
A34: 01 | B34: 3 | C34: 90 | D34: 1005.8 | E34: 2.4 | F34: 8 | H34: 01 | I34: 2 | J34: 91 | K34: 1007.6 | L34: 4 | M34: 8
A35: 02 | B35: 3 | C35: 93 | D35: 1008.3 | E35: 0.9 | F35: 8 | H35: 02 | I35: 2 | J35: 92 | K35: 1007.9 | L35: 4.6 | M35: 8
A36: 03 | B36: 3 | C36: 94 | D36: 1009 | E36: 1.1 | F36: 8 | H36: 03 | I36: 2 | J36: 93 | K36: 1008.5 | L36: 5.2 | M36: 8
A37: 04 | B37: 3 | C37: 91 | D37: 1009 | E37: 0.6 | F37: 2 | H37: 04 | I37: 2 | J37: 95 | K37: 1009.2 | L37: 5.6 | M37: 8
A38: 05 | B38: 3 | C38: 87 | D38: 1009.2 | E38: 0 | F38: 1 | H38: 05 | I38: 2 | J38: 96 | K38: 1010.6 | L38: 5.8 | M38: 8
A39: 06 | B39: 3 | C39: 87 | D39: 1009.8 | E39: -0.3 | F39: 5 | H39: 06 | I39: 2 | J39: 96 | K39: 1011.3 | L39: 5.7 | M39: 8
A40: 07 | B40: 3 | C40: 83 | D40: 1010.2 | E40: -0.5 | F40: 5 | H40: 07 | I40: 1 | J40: 97 | K40: 1012.5 | L40: 5.6 | M40: 8
A41: 08 | B41: 3 | C41: 83 | D41: 1010.8 | E41: -0.4 | F41: 4 | H41: 08 | I41: 1 | J41: 97 | K41: 1013.3 | L41: 5.5 | M41: 8
A42: 09 | B42: 3 | C42: 81 | D42: 1011 | E42: -0.2 | F42: 6 | H42: 09 | I42: 0 | J42: 97 | K42: 1014.3 | L42: 5.7 | M42: 8
A43: 10 | B43: 3 | C43: 78 | D43: 1011.1 | E43: -0.1 | F43: 4 | H43: 10 | I43: 1 | J43: 98 | K43: 1014.6 | L43: 6.2 | M43: 8
A44: 11 | B44: 3 | C44: 75 | D44: 1010.9 | E44: 0.3 | F44: 7 | H44: 11 | I44: 1 | J44: 98 | K44: 1014.8 | L44: 6.9 | M44: 8
A45: 12 | B45: 4 | C45: 70 | D45: 1010.6 | E45: 0.2 | F45: 6 | H45: 12 | I45: 2 | J45: 98 | K45: 1014.7 | L45: 7.3 | M45: 8
A46: 13 | B46: 3 | C46: 69 | D46: 1010.7 | E46: 0.1 | F46: 7 | H46: 13 | I46: 1 | J46: 99 | K46: 1014.5 | L46: 8.4 | M46: 8
A47: 14 | B47: 3 | C47: 69 | D47: 1010.4 | E47: 0.1 | F47: 7 | H47: 14 | I47: 3 | J47: 91 | K47: 1014 | L47: 10.5 | M47: 7
A48: 15 | B48: 2 | C48: 69 | D48: 1010.1 | E48: 0.2 | F48: 7 | H48: 15
A49: 16 | B49: 2 | C49: 72 | D49: 1009.7 | E49: 0.5 | F49: 7 | H49: 16
A50: 17 | B50: 3 | C50: 76 | D50: 1010 | E50: 0.8 | F50: 7 | H50: 17
A51: 18 | B51: 3 | C51: 72 | D51: 1010 | E51: 0.3 | F51: 8 | H51: 18
A52: 19 | B52: 3 | C52: 75 | D52: 1010.3 | E52: 0.7 | F52: 8 | H52: 19
A53: 20 | B53: 1 | C53: 80 | D53: 1010.1 | E53: 1.1 | F53: 8 | H53: 20
A54: 21 | B54: 1 | C54: 80 | D54: 1009.4 | E54: 1.5 | F54: 8 | H54: 21
A55: 22 | B55: 1 | C55: 82 | D55: 1008.5 | E55: 1.6 | F55: 8 | H55: 22
A56: 23 | B56: 3 | C56: 80 | D56: 1008 | E56: 2.4 | F56: 8 | H56: 23
A57: Mittel | B57: =ROUND(AVERAGE(B33:B56),1) -> 2.7 | C57: =ROUND(AVERAGE(C33:C56),1) -> 80.1 | D57: =ROUND(AVERAGE(D33:D56),1) -> 1009.5 | E57: =ROUND(AVERAGE(E33:E56),1) -> 0.7 | F57: =ROUND(AVERAGE(F33:F56),1) -> 6.5 | H57: Mittel | I57: =ROUND(AVERAGE(I33:I56),1) -> 1.6 | J57: =ROUND(AVERAGE(J33:J56),1) -> 94.9 | K57: =ROUND(AVERAGE(K33:K56),1) -> 1011.7 | L57: =ROUND(AVERAGE(L33:L56),1) -> 6 | M57: =ROUND(AVERAGE(M33:M56),1) -> 7.9
E59: 2016-01-31 | L59: 2016-02-01

Sheet Kurztabelle
A2: Wetterwarte: Köttewitz | L2: Monat: | M2: Januar | R2: Jahr: | U2: 2016
A4: Dat. | B4: TTT | C4: TxTx | D4: TnTn | E4: Tg | F4: Umin. | G4: UU | H4: NN | I4: RRRR | J4: Art | L4: sss | M4: PPPP | N4: eee | O4: fff | R4: Tage mit | V4: fk | W4: Summe
J5: * | O5: Bft | P5: SS | Q5: Art ( D ) | R5: RR | S5: Ge | T5: Bf6 | U5: Bf8 | V5: Bft | W5: Gewitter
A6: 01. | B6: -0.3 | C6: 1.3 | D6: -2 | E6: -3 | F6: 97 | G6: 98 | H6: 7.2 | I6: . | L6: . | M6: 1027.6 | N6: -0.5 | O6: 0 | V6: 2 | AA6: max >=30,0°C | AB6: max >=25,0°C | AC6: max <0,0°C | AE6: RR >=0,1 mm | AF6: RR >=1,0 mm | AG6: RR >=3,0 mm | AH6: RR >=10,0 mm | AI6: RR >=20,0 mm
A7: 02. | B7: -0.5 | C7: 1.3 | D7: -2.6 | E7: -3.5 | F7: 88 | G7: 97 | H7: 7.6 | I7: 0 | L7: . | M7: 1021.8 | N7: -0.9 | O7: 2 | T7: 1 | V7: 6 | AA7: =COUNTIF(C6:C15,">=30") -> 0 | AB7: =COUNTIF(C6:C15,">=25") -> 0 | AC7: =COUNTIF(C6:C15,"<0") -> 3 | AE7: =COUNTIF(I6:I15,">=0,1") -> 5 | AF7: =COUNTIF(I6:I15,">=1") -> 4 | AG7: =COUNTIF(I6:I15,">=3") -> 1 | AH7: =COUNTIF(I6:I15,">=10") -> 0 | AI7: =COUNTIF(I6:I15,">=20") -> 0
A8: 03. | B8: -3 | C8: -0.8 | D8: -4.9 | E8: - | F8: 82 | G8: 85 | H8: 7.9 | I8: . | L8: . | M8: 1015.3 | N8: -5.1 | O8: 3 | T8: 1 | V8: 6 | AA8: =COUNTIF(C18:C27,">=30") -> 0 | AB8: =COUNTIF(C18:C27,">=25") -> 0 | AC8: =COUNTIF(C18:C27,"<0") -> 5 | AE8: =COUNTIF(I18:I27,">=0,1") -> 10 | AF8: =COUNTIF(I18:I27,">=1") -> 6 | AG8: =COUNTIF(I18:I27,">=3") -> 4 | AH8: =COUNTIF(I18:I27,">=10") -> 0 | AI8: =COUNTIF(I18:I27,">=20") -> 0
A9: 04. | B9: -4.2 | C9: -2.7 | D9: -5 | E9: -6.3 | F9: 75 | G9: 83 | H9: 7.4 | I9: 1.4 | J9: S | L9: . | M9: 998.6 | N9: -6.7 | O9: 3 | P9: 1 | Q9: * | R9: 1 | T9: 1 | V9: 6 | AA9: =COUNTIF(C30:C40,">=30") -> 0 | AB9: =COUNTIF(C30:C40,">=25") -> 0 | AC9: =COUNTIF(C30:C40,"<0") -> 2 | AE9: =COUNTIF(I30:I40,">=0,1") -> 9 | AF9: =COUNTIF(I30:I40,">=1") -> 6 | AG9: =COUNTIF(I30:I40,">=3") -> 4 | AH9: =COUNTIF(I30:I40,">=10") -> 0 | AI9: =COUNTIF(I30:I40,">=20") -> 0
A10: 05. | B10: -2.6 | C10: -1.3 | D10: -4.2 | E10: -5.2 | F10: 88 | G10: 92 | H10: 8 | I10: 0.2 | J10: S;E | L10: . | M10: 998.6 | N10: -3.8 | O10: 1 | P10: 1 | Q10: * | R10: 1 | V10: 3
A11: 06. | B11: -1.3 | C11: 0 | D11: -2.6 | E11: - | F11: 89 | G11: 93 | H11: 8 | I11: 1.7 | J11: S | L11: . | M11: 1002.8 | N11: -2.3 | O11: 1 | P11: 1 | Q11: * | R11: 1 | V11: 2 | AA11: min <0,0°C | AB11: min <0-10,0°C | AE11: rel.Lf. 14h >=70% | AG11: rel.Lf. 14h <=40%
A12: 07. | B12: -0.9 | C12: 1.7 | D12: -3.5 | E12: -4.9 | F12: 88 | G12: 93 | H12: 6.6 | I12: 1.4 | J12: S;R | L12: 1.1 | M12: 1002.8 | N12: -2 | O12: 1 | P12: 4 | Q12: * | R12: 1 | V12: 5 | AA12: =COUNTIF(D6:D15,"<0") -> 10 | AB12: =COUNTIF(D6:D15,"<=-10") -> 0 | AE12: =COUNTIF(F6:F15,">=70") -> 9 | AG12: =COUNTIF(F6:F15,"<=40") -> 0
A13: 08. | B13: 3.9 | C13: 6.5 | D13: -0.3 | E13: - | F13: 59 | G13: 73 | H13: 2.7 | I13: . | L13: 1.2 | M13: 1003.3 | N13: -0.6 | O13: 3 | Q13: V | T13: 1 | V13: 6 | AA13: =COUNTIF(D18:D27,"<0") -> 7 | AB13: =COUNTIF(D18:D27,"<=-10") -> 2 | AE13: =COUNTIF(F18:F27,">=70") -> 9 | AG13: =COUNTIF(F18:F27,"<=40") -> 0
A14: 09. | B14: -0.4 | C14: 3.2 | D14: -3.7 | E14: -7.5 | F14: 76 | G14: 88 | H14: 3.9 | I14: . | L14: 0.7 | M14: 1006.7 | N14: -2.1 | O14: 1 | Q14: R | V14: 3 | AA14: =COUNTIF(D30:D40,"<0") -> 3 | AB14: =COUNTIF(D30:D40,"<=-10") -> 2 | AE14: =COUNTIF(F30:F40,">=70") -> 5 | AG14: =COUNTIF(F30:F40,"<=40") -> 0
A15: 10. | B15: 2.5 | C15: 5.9 | D15: -1.5 | E15: -4.9 | F15: 83 | G15: 91 | H15: 5.5 | I15: 3.2 | J15: R | L15: 0.2 | M15: 1000.1 | N15: 1.1 | O15: 2 | Q15: R | R15: 1 | V15: 5
A16: Su | B16: =SUM(B6:B15) -> -6.8 | C16: =SUM(C6:C15) -> 15.1 | D16: =SUM(D6:D15) -> -30.3 | E16: =SUM(E6:E15) -> -35.3 | F16: XXX | G16: XXX | H16: XXX | I16: =SUM(I6:I15) -> 7.9 | J16: XX | L16: =SUM(L6:L15) -> 3.2 | M16: XXX | N16: XXX | O16: XXX | P16: =COUNT(P6:P15) -> 4 | Q16: X | R16: =SUM(R6:R15) -> 5 | S16: =SUM(S6:S15) -> 0 | T16: =SUM(T6:T15) -> 4 | U16: =SUM(U6:U15) -> 0 | V16: XXX | AA16: ohne Sonne | AB16: Son. 0,1-0,9 | AC16: Son. >=10,0 | AE16: Sch. >=1 cm | AF16: Sch. >=3 cm | AG16: Sch. >=10 cm
A17: Mi | B17: =AVERAGE(B6:B15) -> -0.68 | C17: =AVERAGE(C6:C15) -> 1.51 | D17: -3.03 | E17: -5.042857143 | F17: XXX | G17: 89.3 | H17: 6.48 | I17: XXX | J17: XX | L17: =L16/10 -> 0.32 | M17: =AVERAGE(M6:M15) -> 1007.76 | N17: =AVERAGE(N6:N15) -> -2.29 | O17: =AVERAGE(O6:O15) -> 1.7 | P17: XX | Q17: X | R17: XX | S17: XX | T17: XX | U17: XX | V17: =AVERAGE(V6:V15) -> 4.4 | AA17: =COUNTIF(L6:L15,".") -> 6 | AB17: =COUNTIF(L6:L15,"<1") -> 2 | AC17: =COUNTIF(L6:L15,">=10") -> 0 | AE17: =COUNTIF(P6:P15,">=1") -> 4 | AF17: =COUNTIF(P6:P15,">=3") -> 1 | AG17: =COUNTIF(P6:P15,">=10") -> 0
A18: 11. | B18: 4 | C18: 6 | D18: 2.9 | E18: 0 | F18: 86 | G18: 93 | H18: 7.8 | I18: 4.1 | J18: R | L18: . | M18: 993.7 | N18: 3 | O18: 1 | R18: 1 | V18: 4 | AA18: =COUNTIF(L18:L27,".") -> 5 | AB18: =COUNTIF(L18:L27,"<1") -> 2 | AC18: =COUNTIF(L18:L27,">=10") -> 0 | AE18: =COUNTIF(P18:P27,">=1") -> 6 | AF18: =COUNTIF(P18:P27,">=3") -> 6 | AG18: =COUNTIF(P18:P27,">=10") -> 2
A19: 12. | B19: 4.9 | C19: 6.2 | D19: 2.7 | E19: - | F19: 81 | G19: 87 | H19: 7.3 | I19: 0.7 | J19: R | L19: . | M19: 994.5 | N19: 2.9 | O19: 3 | R19: 1 | T19: 1 | V19: 6 | AA19: =COUNTIF(L30:L40,".") -> 3 | AB19: =COUNTIF(L30:L40,"<1") -> 4 | AC19: =COUNTIF(L30:L40,">=10") -> 0 | AE19: =COUNTIF(P30:P40,">=1") -> 5 | AF19: =COUNTIF(P30:P40,">=3") -> 5 | AG19: =COUNTIF(P30:P40,">=10") -> 4
A20: 13. | B20: 3.1 | C20: 4.7 | D20: 0 | E20: - | F20: 79 | G20: 88 | H20: 6.9 | I20: 3.1 | J20: R;S | L20: . | M20: 1005.7 | N20: 1.4 | O20: 3 | R20: 1 | T20: 1 | V20: 6
A21: 14. | B21: 1.4 | C21: 4.6 | D21: -1.3 | E21: -3.9 | F21: 66 | G21: 84 | H21: 6 | I21: 2 | J21: S | L21: 1.6 | M21: 1012.1 | N21: -1 | O21: 2 | Q21: V | R21: 1 | V21: 4 | AA21: Max TT | AB21: Max TxTx | AC21: Min TgTg | AE21: Max RR
A22: 15. | B22: 0.8 | C22: 3.2 | D22: -0.6 | E22: -3.7 | F22: 80 | G22: 92 | H22: 7.3 | I22: 0.5 | J22: S | L22: 0.3 | M22: 1007.8 | N22: -0.4 | O22: 1 | P22: 4 | Q22: * | R22: 1 | V22: 4 | AA22: =MAX(B6:B15,B18:B27,B30:B40) -> 12.2 | AB22: =MAX(C6:C15,C18:C27,C30:C40) -> 14.3 | AC22: =MIN(E6:E15,E18:E27,E30:E40) -> -18 | AE22: =MAX(I6:I15,I18:I27,I30:I40) -> 9.6
A23: 16. | B23: -0.8 | C23: -0.1 | D23: -1.6 | E23: -3.4 | F23: 84 | G23: 91 | H23: 7.8 | I23: 2.5 | J23: S | L23: 0.2 | M23: 1018.7 | N23: -2.1 | O23: 2 | P23: 4 | Q23: D | R23: 1 | V23: 4 | AA23: Min TT | AB23: Min TnTn | AC23: Min U14 | AE23: Max SS
A24: 17. | B24: -1.7 | C24: -0.9 | D24: -3.2 | E24: - | F24: 92 | G24: 93 | H24: 7.9 | I24: 3.4 | J24: S | L24: . | M24: 1020.8 | N24: -2.6 | O24: 1 | P24: 10 | Q24: * | R24: 1 | V24: 4 | AA24: =MIN(B6:B15,B18:B27,B30:B40) -> -8.5 | AB24: =MIN(D6:D15,D18:D27,D30:D40) -> -12.8 | AC24: =MIN(F6:F15,F18:F27,F30:F40) -> 44 | AE24: =MAX(P6:P15,P18:P27,P30:P40) -> 16
A25: 18. | B25: -5.6 | C25: -2.7 | D25: -11.3 | E25: < -16 | F25: 83 | G25: 91 | H25: 4.3 | I25: 0.1 | J25: S | L25: 1.8 | M25: 1023.5 | N25: -6.6 | O25: 0 | P25: 12 | Q25: * | R25: 1 | V25: 2
A26: 19. | B26: -8.2 | C26: -3.3 | D26: -12.4 | E26: -18 | F26: 72 | G26: 85 | H26: 1.4 | I26: 0.5 | J26: S | L26: 1.8 | M26: 1018.9 | N26: -10.4 | O26: 2 | P26: 9 | Q26: * | R26: 1 | V26: 4
A27: 20. | B27: -2.8 | C27: -0.9 | D27: -6.8 | E27: -10.4 | F27: 82 | G27: 90 | H27: 8 | I27: 3.8 | J27: S | L27: . | M27: 1016.4 | N27: -4.3 | O27: 1 | P27: 9 | Q27: * | R27: 1 | V27: 4
A28: Su | B28: =SUM(B18:B27) -> -4.9 | C28: =SUM(C18:C27) -> 16.8 | D28: =SUM(D18:D27) -> -31.6 | E28: =SUM(E18:E27) -> -39.4 | F28: XXX | G28: XXX | H28: XXX | I28: =SUM(I18:I27) -> 20.7 | J28: XX | L28: =SUM(L18:L27) -> 5.7 | M28: XXX | N28: XXX | O28: XXX | P28: =COUNT(P18:P27) -> 6 | Q28: X | R28: =SUM(R18:R27) -> 10 | S28: =SUM(S18:S27) -> 0 | T28: =SUM(T18:T27) -> 2 | U28: =SUM(U18:U27) -> 0 | V28: XXX
A29: Mi | B29: =AVERAGE(B18:B27) -> -0.49 | C29: =AVERAGE(C18:C27) -> 1.68 | D29: -3.16 | E29: -6.566666667 | F29: 80.5 | G29: 89.4 | H29: 6.47 | I29: XXX | J29: XX | L29: =L28/10 -> 0.57 | M29: =AVERAGE(M18:M27) -> 1011.21 | N29: =AVERAGE(N18:N27) -> -2.01 | O29: =AVERAGE(O18:O27) -> 1.6 | P29: XX | Q29: X | R29: XX | S29: XX | T29: XX | U29: XX | V29: =AVERAGE(V18:V27) -> 4.2
A30: 21. | B30: -4.5 | C30: -1.7 | D30: -11.1 | E30: < - 14 | F30: 73 | G30: 86 | H30: 6 | I30: 0.1 | J30: S | L30: 1.9 | M30: 1027.9 | N30: -6.2 | O30: 2 | P30: 12 | Q30: * | R30: 1 | V30: 4
A31: 22. | B31: -8.5 | C31: -3.5 | D31: -12.8 | E31: -17.9 | F31: 77 | G31: 85 | H31: 0.2 | I31: 0.4 | J31: S | L31: 2.2 | M31: 1033.6 | N31: -10.7 | O31: 2 | P31: 10 | Q31: * | R31: 1 | V31: 5
A32: 23. | B32: -1.9 | C32: 3.6 | D32: -6.2 | E32: - | F32: 76 | G32: 90 | H32: 7.3 | I32: 8.9 | J32: S;R | L32: . | M32: 1029.9 | N32: -3.7 | O32: 2 | P32: 16 | Q32: * | R32: 1 | V32: 5
A33: 24. | B33: 3.2 | C33: 5 | D33: 1.3 | E33: - | F33: 85 | G33: 91 | H33: 7.3 | I33: 3.6 | J33: R | L33: 0.2 | M33: 1032.8 | N33: 1.9 | O33: 1 | P33: 11 | Q33: * | R33: 1 | V33: 5
A34: 25. | B34: - | C34: - | D34: - | E34: - | F34: - | G34: - | H34: - | I34: 1 | J34: R | L34: . | M34: - | N34: - | O34: - | P34: 6 | Q34: D | R34: 1 | V34: 5
A35: 26. | B35: 7 | C35: 12.3 | D35: 2.3 | E35: - | F35: 72 | G35: 92 | H35: 5.6 | I35: 0.1 | J35: R | L35: 0.3 | M35: 1023.4 | N35: 5.5 | O35: 1 | Q35: R | R35: 1 | V35: 5
A36: 27. | B36: 12.2 | C36: 14.3 | D36: 10.2 | E36: 10.2 | F36: 56 | G36: 64 | H36: 7.2 | I36: . | L36: 0.4 | M36: 1017.2 | N36: 5.5 | O36: 3 | T36: 1 | V36: 7
A37: 28. | B37: 8.1 | C37: 13.6 | D37: 0.9 | E37: - | F37: 52 | G37: 72 | H37: 6.4 | I37: 1.2 | J37: R | L37: 1.4 | M37: 1019.7 | N37: 3.5 | O37: 2 | R37: 1 | T37: 1 | V37: 7
A38: 29. | B38: 5.4 | C38: 11.4 | D38: 0.1 | E38: -4 | F38: 44 | G38: 71 | H38: 5.3 | I38: . | L38: 0.7 | M38: 1024.7 | N38: 0 | O38: 1 | T38: 1 | V38: 6
A39: 30. | B39: 7 | C39: 8.7 | D39: 5.1 | E39: - | F39: 67 | G39: 77 | H39: 7.3 | I39: 9.6 | J39: R;S | L39: . | M39: 1013.7 | N39: 3.3 | O39: 2 | R39: 1 | T39: 1 | V39: 6
A40: 31. | B40: 3.9 | C40: 6.1 | D40: 1.4 | E40: -0.4 | F40: 67 | G40: 80 | H40: 6.5 | I40: 5 | J40: R | L40: 1.4 | M40: 1009.5 | N40: 0.7 | O40: 3 | R40: 1 | T40: 1 | V40: 6
A41: Su | B41: =SUM(B30:B40) -> 31.9 | C41: =SUM(C30:C40) -> 69.8 | D41: =SUM(D30:D40) -> -8.8 | E41: =SUM(E30:E40) -> -12.1 | F41: XXX | G41: XXX | H41: XXX | I41: =SUM(I30:I40) -> 29.9 | J41: XX | L41: =SUM(L30:L40) -> 8.5 | M41: XXX | N41: XXX | O41: XXX | P41: =COUNT(P30:P40) -> 5 | Q41: X | R41: =SUM(R30:R40) -> 9 | S41: =SUM(S30:S40) -> 0 | T41: =SUM(T30:T40) -> 5 | U41: =SUM(U30:U40) -> 0 | V41: XXX
A42: Mi | B42: =AVERAGE(B30:B40) -> 3.19 | C42: =AVERAGE(C30:C40) -> 6.98 | D42: =AVERAGE(D30:D40) -> -0.88 | E42: =AVERAGE(E30:E40) -> -3.025 | F42: XXX | G42: =AVERAGE(G30:G40) -> 80.8 | H42: =AVERAGE(H30:H40) -> 5.91 | I42: XXX | J42: XX | L42: XXX | M42: =AVERAGE(M30:M40) -> 1023.24 | N42: =AVERAGE(N30:N40) -> -0.02 | O42: =AVERAGE(O30:O40) -> 1.9 | P42: XX | Q42: X | R42: XX | S42: XX | T42: XX | U42: XX | V42: =AVERAGE(V30:V40) -> 5.545454545
A43: MSu | B43: =SUM(B16+B28+B41) -> 20.2 | C43: =SUM(C16+C28+C41) -> 101.7 | D43: =SUM(D16+D28+D41) -> -70.7 | E43: =SUM(E16+E28+E41) -> -86.8 | F43: XXX | G43: XXX | H43: XXX | I43: =SUM(I16+I28+I41) -> 58.5 | J43: XX | L43: =SUM(L16+L28+L41) -> 17.4 | M43: XXX | N43: XXX | O43: XXX | P43: =SUM(P16,P28,P41) -> 15 | Q43: X | R43: =SUM(R16+R28+R41) -> 24 | S43: =SUM(S16+S28+S41) -> 0 | T43: =SUM(T16+T28+T41) -> 11 | U43: =SUM(U16+U28+U41) -> 0 | V43: XXX
A44: MMi | B44: =AVERAGE(B6:B15,B18:B27,B30:B40) -> 0.6733333333 | C44: =AVERAGE(C6:C15,C18:C27,C30:C40) -> 3.39 | D44: =AVERAGE(D6:D15,D18:D27,D30:D40) -> -2.356666667 | E44: =AVERAGE(E6:E15,E18:E27,E30:E40) -> -5.105882353 | F44: XXX | G44: =AVERAGE(G6:G15,G18:G27,G30:G40) -> 86.5 | H44: =AVERAGE(H6:H15,H18:H27,H30:H40) -> 6.286666667 | I44: XXXXX | J44: XX | L44: XXXX | M44: =AVERAGE(M6:M15,M18:M27,M30:M40) -> 1014.07 | N44: =AVERAGE(N6:N15,N18:N27,N30:N40) -> -1.44 | O44: =AVERAGE(O6:O15,O18:O27,O30:O40) -> 1.733333333 | P44: XX | Q44: X | R44: XX | S44: XX | T44: XX | U44: XX | V44: =AVERAGE(V17,V29,V42) -> 4.715151515
B46: Norm | C46: % v N.- | D46: Abw. | E46: Zahl der Tage | L46: Niederschlag mm | P46: Sonnensch.-dauer Std
B47: wert | C47: wert | D47: K | E47: Max.d.Lufttemp.°C | L47: >/= 0,1 | O47: =SUM(AE7:AE9) -> 24 | P47: ohne Sonne | V47: =SUM(AA17:AA19) -> 14
A48: TTT | B48: 0.5 | C48: XXXX | D48: =SUM(B44-B48) -> 0.1733333333 | E48: Tropentag/Hitzetag | I48: =SUM(AA7:AA9) -> 0 | L48: >/= 1,0 | O48: =SUM(AF7:AF9) -> 16 | P48: 0,1 bis 0,9 | V48: =SUM(AB17:AB19) -> 8
A49: RRR | B49: 45 | C49: =SUM(I43*100/B49) -> 130 | D49: XXXX | E49: Sommertag | I49: =SUM(AB7:AB9) -> 0 | L49: >/= 3,0 | O49: =SUM(AG7:AG9) -> 9 | P49: >/= 10,0 | V49: =SUM(AC17:AC19) -> 0
A50: sss | B50: 64 | C50: =SUM(L43*100/B50) -> 27.1875 | D50: XXXX | E50: Eistag | I50: =SUM(AC7:AC9) -> 10 | L50: >/=10,0 | O50: =SUM(AH7:AH9) -> 0 | P50: Schneedecke cm
A51: astr. | D51: XXXX | E51: Polartag | I51: 0 | L51: >/= 20,0 | O51: =SUM(AI7:AI9) -> 0 | P51: >/= 1 | V51: =SUM(AE17:AE19) -> 15
A52: mgl. | B52: 264 | C52: =SUM(L43*100/B52) -> 6.590909091 | D52: XXXX | E52: Min.d.Lufttemp.°C | L52: Rel. Luftfeuchte 14 Uhr | P52: >/= 3 | V52: =SUM(AF17:AF19) -> 12
A53: sss | D53: XXXX | E53: Frosttag | I53: =SUM(AA12:AA14) -> 20 | L53: >/=70% | O53: =SUM(AE12:AE14) -> 23 | P53: >/= 10 | V53: =SUM(AG17:AG19) -> 6
E54: Tropennacht | I54: 0 | L54: </=40% | O54: =SUM(AG12:AG14) -> 0
E57: Unter "Tage mit" sind die Angaben Bft 6 & Bft 8 nicht 10 min. - Mittel sonder 2,5 s - Werte.
E58: Wenn ein Wert auch mit einem 10 min. - Wert erreicht wird, erfolgt eine rote Markierung.
E59: Dies gilt rückwirkend auf November 2012.
F113: Tage mit Bft 6 /8 eigentlich in 10 min. - Mittel

Sheet Sichtst.
E1: Sichtweitenstatistik
B5: Wetterstation: Köttewitz | F5: Monat: | G5: Januar | K5: Jahr: | L5: 2016
A7: Dat. | B7: Nebeldauer | C7: Nebel | D7: Dunst | E7: Sicht | F7: Sicht | G7: Sicht | H7: Sicht
B8: in St. u. Min. | E8: mittel | F8: normal | G8: gut | H8: sehr gut
A9: 01. | B9: - | C9: - | D9: 1 | E9: 1 | F9: - | G9: - | H9: - | N9: =IF(ISNUMBER(B9),B9*24," ") ->  | O9: =IF(ISNUMBER(N9),IF(N9<1,1," ")," ") ->  | P9: =IF(ISNUMBER(N9),IF(N9<8,2," ")," ") ->  | Q9: =IF(ISNUMBER(N9),IF(N9<24,3," ")," ") ->  | R9: =MIN(O9:Q9) -> 0
A10: 02. | B10: - | C10: =IF(R10=1,1,"-") -> - | D10: 1 | E10: 1 | F10: 1 | G10: - | H10: - | R10: 0
A11: 03. | B11: - | C11: - | D11: 1 | E11: 1 | F11: - | G11: - | H11: - | R11: 0
A12: 04. | B12: - | C12: =IF(R12=1,1,"-") -> - | D12: 1 | E12: 1 | F12: 1 | G12: - | H12: - | R12: 0
A13: 05. | B13: - | C13: =IF(R13=1,1,"-") -> - | D13: 1 | E13: - | F13: - | G13: - | H13: - | R13: 0
A14: 06. | B14: - | C14: - | D14: 1 | E14: - | F14: - | G14: - | H14: - | R14: 0
A15: 07. | B15: - | C15: - | D15: 1 | E15: 1 | F15: - | G15: - | H15: - | R15: 0
A16: 08. | B16: - | C16: - | D16: 1 | E16: 1 | F16: 1 | G16: - | H16: - | R16: 0
A17: 09. | B17: - | C17: - | D17: - | E17: - | F17: 1 | G17: 1 | H17: - | R17: 0
A18: 10. | B18: - | C18: - | D18: - | E18: - | F18: 1 | G18: - | H18: - | R18: 0
A19: 11. | B19: - | C19: - | D19: - | E19: 1 | F19: 1 | G19: - | H19: - | R19: 0
A20: 12. | B20: - | C20: - | D20: - | E20: - | F20: 1 | G20: - | H20: - | R20: 0
A21: 13. | B21: - | C21: - | D21: - | E21: - | F21: 1 | G21: 1 | H21: - | R21: 0
A22: 14. | B22: - | C22: =IF(R22=1,1,"-") -> - | D22: - | E22: 1 | F22: 1 | G22: - | H22: - | R22: 0
A23: 15. | B23: - | C23: - | D23: - | E23: 1 | F23: 1 | G23: - | H23: - | R23: 0
A24: 16. | B24: - | C24: - | D24: 1 | E24: 1 | F24: 1 | G24: - | H24: - | R24: 0
A25: 17. | B25: - | C25: - | D25: 1 | E25: 1 | F25: - | G25: - | H25: - | R25: 0
A26: 18. | B26: - | C26: - | D26: 1 | E26: 1 | F26: 1 | G26: - | H26: - | R26: 0
A27: 19. | B27: - | C27: - | D27: - | E27: 1 | F27: 1 | G27: - | H27: - | R27: 0
A28: 20. | B28: - | C28: - | D28: 1 | E28: 1 | F28: 1 | G28: - | H28: - | R28: 0
A29: 21. | B29: - | C29: - | D29: 1 | E29: 1 | F29: 1 | G29: - | H29: - | R29: 0
A30: 22. | B30: - | C30: - | D30: - | E30: - | F30: 1 | G30: - | H30: - | R30: 0
A31: 23. | B31: - | C31: - | D31: 1 | E31: 1 | F31: 1 | G31: - | H31: - | R31: 0
A32: 24. | B32: - | C32: - | D32: 1 | E32: 1 | F32: 1 | G32: - | H32: - | R32: 0
A33: 25. | B33: - | C33: - | D33: - | E33: 1 | F33: 1 | G33: - | H33: - | R33: 0
A34: 26. | B34: - | C34: - | D34: - | E34: - | F34: 1 | G34: 1 | H34: - | R34: 0
A35: 27. | B35: - | C35: - | D35: - | E35: - | F35: 1 | G35: 1 | H35: - | R35: 0
A36: 28. | B36: - | C36: - | D36: - | E36: - | F36: 1 | G36: 1 | H36: - | R36: 0
A37: 29. | B37: - | C37: - | D37: - | E37: - | F37: 1 | G37: 1 | H37: 1
A38: 30. | B38: - | C38: - | D38: - | E38: - | F38: 1 | G38: 1 | H38: -
A39: 31. | B39: - | C39: - | D39: 1 | E39: 1 | F39: 1 | G39: 1 | H39: -
A40: Su. | B40: =SUM(B9:B39) -> 00:00:00 | C40: 0 | D40: 16 | E40: 19 | F40: 25 | G40: 8 | H40: 1
B42: Anzahl der Nebeltage : | E42: =SUM(C40) -> 0
B43: Anzahl der Tage Sicht >= 50 km : | E43: =SUM(G40) -> 8

Sheet Monatsdiagramm
A1: Klimadiagramm | C1: Wetterstation Köttewitz | I1: (211 m ü. NHN)
A3: Januar 2016
C5: aktuell | D5: langj. Mittel | E5: Abw. vom lj. Mittel
B6: höchste Temperatur (°C): | C6: =MAX('Daten für Diagr.'!C2:C32) -> 14.3 | D6: am | E6: 2016-01-26
B7: mittlere Temperatur (°C): | C7: ='Daten für Diagr.'!B33 -> 0.6733333333 | D7: =Kurztabelle!B48 -> 0.5 | E7: =C7-D7 -> 0.1733333333 | F7: K
B8: tiefste Temperatur (°C): | C8: =MIN('Daten für Diagr.'!D2:D32) -> -12.8 | D8: am | E8: 2016-01-22
B9: Niederschlagshöhe (mm): | C9: =Kurztabelle!I43 -> 58.5 | D9: =Kurztabelle!B49 -> 45 | E9: =100/D9*C9 -> 130 | F9: %
B10: Sonnenscheindauer (Std.)*: | C10: =Kurztabelle!L43 -> 17.4 | D10: =Kurztabelle!B50 -> 64 | E10: =100/D10*C10 -> 27.1875 | F10: %
A66: *Die Wetterstation kann, durch geographische Hindernisse, nicht die maximal mögliche Sonnenscheindauer aufzeichnen. Es gilt ein Übergangsprozentsatz von: Dez 30 %; Okt/Nov & Jan/Feb 40 %; Mär & Sep 65 %; Apr 80 %; Mai - August 90 %.
A67: Diese Werte entsprechend annähernd 100 % (Normalwert Köttewitz). Nach 10 Jahren erfolgt die Umstellung des Prozentsatzes nach der örtlichen Aufzeichnung.

Sheet Daten für Diagr.
B1: Td | C1: Tmax | D1: Tmin | E1: RR | F1: Schnee | G1: Sonne | H1: Luftdr. | I1: MWT | J1: GWL | K1: Name | L1: Sonstiges
A2: 2016-01-01 | B2: -0.3 | C2: 1.3 | D2: -2 | H2: 1027.6 | I2: 0.45 | L2: Von 00:00 Uhr - 00:14 Uhr leichter gefrierender Regen (WW 66).
A3: 2016-01-02 | B3: -0.5 | C3: 1.3 | D3: -2.6 | H3: 1021.8 | I3: 0.45 | J3: HFa | K3: (H Christine) | L3: Von 12:05 Uhr - 12:24 Uhr leichter Schneefall (WW 71).
A4: 2016-01-03 | B4: -3 | C4: -0.8 | D4: -4.9 | F4: 0 | H4: 1015.3 | I4: 0.45
A5: 2016-01-04 | B5: -4.2 | C5: -2.7 | D5: -5 | E5: 1.4 | F5: 1 | H5: 998.6 | I5: 0.4 | J5: Ww | K5: T Helmut | L5: Von 12:10 Uhr - 12:29 Uhr; 14:00 Uhr - 17:29 Uhr; 19:00 Uhr - 23:59 Uhr leichter Schneefall (WW 71).
A6: 2016-01-05 | B6: -2.6 | C6: -1.3 | D6: -4.2 | E6: 0.2 | F6: 1 | H6: 998.6 | I6: 0.4 | L6: Von 00:00 Uhr - Vor 08:00 Uhr; Gegen 10:30 Uhr leichter Schneefall (WW 71). Gegen 15:00 Uhr - 15:49 Uhr leichter gefrierender Regen (WW 66).
A7: 2016-01-06 | B7: -1.3 | C7: 0 | D7: -2.6 | E7: 1.7 | F7: 1 | H7: 1002.8 | I7: 0.4 | J7: Ws | K7: T Annelisa | L7: Gegen 14:00 Uhr - Gegen 15:00 Uhr leichter Schneefall (WW 71). Gegen 15:00 Uhr - Gegen 16:00 Uhr Schneeflocken (WW 70).
A8: 2016-01-07 | B8: -0.9 | C8: 1.7 | D8: -3.5 | E8: 1.4 | F8: 4 | G8: 1.1 | H8: 1002.8 | I8: 0.35 | J8: Wz | K8: T Britta | L8: Von 04:40 Uhr - 05:29 Uhr mäßiger Schneefall (WW 73). Von 00:30 Uhr - 00:59 Uhr; 01:40 Uhr - 02:59 Uhr; 04:20 Uhr - 04:39 Uhr; 05:30 Uhr - 05:59 Uhr leichter Schneefall (WW 71). Von 01:00 Uhr - 01:39 Uhr; 06:00 Uhr - 06:09 Uhr Schneeflocken (WW 70). Von 23:40 Uhr - 23:59 Uhr leichter Schneeregen (WW 68).
A9: 2016-01-08 | B9: 3.9 | C9: 6.5 | D9: -0.3 | F9: 0 | G9: 1.2 | H9: 1003.3 | I9: 0.35 | L9: Von 00:00 Uhr - 00:39 Uhr leichter Schneeregen (WW 68). Von 01:40 Uhr - 01:49 Uhr; 02:00 Uhr - 02:29 Uhr mäßiger Regen (WW 63). Von 00:40 Uhr - 01:39 Uhr; 01:50 Uhr - 01:59 Uhr; 02:30 Uhr - 03:09 Uhr leichter Regen (WW 61).
A10: 2016-01-09 | B10: -0.4 | C10: 3.2 | D10: -3.7 | G10: 0.7 | H10: 1006.7 | I10: 0.35 | J10: TB | K10: T Britta
A11: 2016-01-10 | B11: 2.5 | C11: 5.9 | D11: -1.5 | E11: 3.2 | G11: 0.2 | H11: 1000.1 | I11: 0.35 | L11: Von 22:20 Uhr - 23:49 Uhr mäßiger Regen (WW 63). Von 22:10 Uhr - 22:19 Uhr; 23:50 Uhr - 23:59 Uhr leichter Regen (WW 61).
A12: 2016-01-11 | B12: 4 | C12: 6 | D12: 2.9 | E12: 4.1 | H12: 993.7 | I12: 0.35 | K12: T Daniella | L12: Von 00:30 Uhr - 01:09 Uhr; 16:30 Uhr - 19:39 Uhr mäßiger Regen (WW 63). Von 00:00 Uhr - 00:29 Uhr; 01:10 Uhr - 02:29 Uhr; 15:50 Uhr - 16:29 Uhr; 19:40 Uhr - 20:09 Uhr; 20:40 Uhr - 20:49 Uhr; 21:00 Uhr - 22:19 Uhr; 22:30 Uhr - 23:09 Uhr leichter Regen (WW 61).
A13: 2016-01-12 | B13: 4.9 | C13: 6.2 | D13: 2.7 | E13: 0.7 | H13: 994.5 | I13: 0.35 | K13: T Carolina | L13: Von 03:20 Uhr - 03:39 Uhr mäßiger Regen (WW 63). Von 18:30 Uhr - 18:49 Uhr mäßiger Regen, unterbrochen (WW 62). Von 00:40 Uhr - 01:09 Uhr; 01:30 Uhr - 01:59 Uhr; 02:20 Uhr - 03:19 Uhr; 03:40 Uhr - 03:49 Uhr; 05:00 Uhr - 05:19 Uhr; 06:20 Uhr - 08:09 Uhr; 12:10 Uhr - 12:29 Uhr; 13:20 Uhr - 13:39 Uhr; 18:00 Uhr - 18:09 Uhr leichter Regen (WW 61). Von 02:00 Uhr - 02:19 Uhr Regentropfen (WW 60).
A14: 2016-01-13 | B14: 3.1 | C14: 4.7 | D14: 0 | E14: 3.1 | F14: 0 | H14: 1005.7 | I14: 0.4 | J14: TrM | K14: T Emma | L14: Von 09:30 Uhr - 10:09 Uhr; 12:30 Uhr - 12:59 Uhr; 14:10 Uhr - 15:39 Uhr; 16:30 Uhr - 17:09 Uhr mäßiger Regen (WW 63). Von 03:40 Uhr - 04:09 Uhr; 07:00 Uhr - 07:19 Uhr; 08:50 Uhr - 09:29 Uhr; 11:50 Uhr - 12:29 Uhr; 13:00 Uhr - 14:09 Uhr; 15:40 Uhr - 16:09 Uhr; 16:20 Uhr - 16:29 Uhr leichter Regen (WW 61).
A15: 2016-01-14 | B15: 1.4 | C15: 4.6 | D15: -1.3 | E15: 2 | F15: 0 | G15: 1.6 | H15: 1012.1 | I15: 0.4 | L15: Von 02:40 Uhr - 03:09 Uhr leichter Schneefall (WW 71).
A16: 2016-01-15 | B16: 0.8 | C16: 3.2 | D16: -0.6 | E16: 0.5 | F16: 4 | G16: 0.3 | H16: 1007.8 | I16: 0.4 | J16: Nz | L16: Von 18:00 Uhr - 18:29 Uhr; 18:40 Uhr - 18:59 Uhr leichte Eiskörner (WW 79). Von 01:20 Uhr - 01:29 Uhr; 02:20 Uhr - 02:34 Uhr; 06:10 Uhr - 06:24 Uhr; 07:15 Uhr - 07:39 Uhr mäßiger Schneefall (WW 73). Von 01:10 Uhr - 01:19 Uhr; 01:30 Uhr - 02:19 Uhr; 02:35 Uhr - 02:44 Uhr; 05:30 Uhr - 06:09 Uhr; 07:05 Uhr - 07:14 Uhr; 07:40 Uhr - 07:49 Uhr; 19:25 Uhr - 20:39 Uhr leichter Schneefall (WW 71).
A17: 2016-01-16 | B17: -0.8 | C17: -0.1 | D17: -1.6 | E17: 2.5 | F17: 4 | G17: 0.2 | H17: 1018.7 | I17: 0.4 | L17: Von 21:40 Uhr - 22:09 Uhr mäßiger Schneefall (WW 73). Von 00:50 Uhr - 03:09 Uhr; 07:40 Uhr - Gegen 11:00 Uhr; Von 20:40 Uhr - 21:39 Uhr leichter Schneefall (WW 71). Gegen 11:00 Uhr - Gegen 12:30 Uhr Schneeflocken (WW 70).
A18: 2016-01-17 | B18: -1.7 | C18: -0.9 | D18: -3.2 | E18: 3.4 | F18: 10 | H18: 1020.8 | I18: 0.4 | J18: Na | K18: H Benno | L18: Von 03:20 Uhr - 03:59 Uhr; 07:40 Uhr - 09:14 Uhr; 14:40 Uhr - 15:39 Uhr; 23:50 Uhr - 23:59 Uhr mäßiger Schneefall (WW 73). Von 01:10 Uhr - 01:39 Uhr; 02:30 Uhr - 02:59 Uhr; 04:00 Uhr - 04:59 Uhr; 05:20 Uhr - 05:39 Uhr; 06:00 Uhr - 07:40 Uhr; 09:15 Uhr - 10:19 Uhr; 13:40 Uhr - 14:39 Uhr; 15:40 Uhr - 18:19 Uhr; 22:00 Uhr - 23:49 Uhr leichter Schneefall (WW 71).
A19: 2016-01-18 | B19: -5.6 | C19: -2.7 | D19: -11.3 | E19: 0.1 | F19: 12 | G19: 1.8 | H19: 1023.5 | I19: 0.45 | L19: Von 00:00 Uhr - 00:09 Uhr; 06:00 Uhr - 06:09 Uhr mäßiger Schneefall (WW 73). Von 00:10 Uhr - 02:39 Uhr mäßiger Schneefall, unterbrochen (WW 72). Von 02:40 Uhr - 03:19 Uhr; 04:30 Uhr - 05:59 Uhr; 06:10 Uhr - 06:49 Uhr; 09:10 Uhr - Gegen 10:00 Uhr leichter Schneefall (WW 71). Von 06:50 Uhr - 07:19 Uhr; 08:40 Uhr - 09:09 Uhr; Gegen 10:00 Uhr - 11:09 Uhr Schneeflocken (WW 70).
A20: 2016-01-19 | B20: -8.2 | C20: -3.3 | D20: -12.4 | E20: 0.5 | F20: 9 | G20: 1.8 | H20: 1018.9 | I20: 0.45
A21: 2016-01-20 | B21: -2.8 | C21: -0.9 | D21: -6.8 | E21: 3.8 | F21: 9 | H21: 1016.4 | I21: 0.45 | J21: Nz | K21: T Hannah | L21: Um 19:30 Uhr; Um 19:55 Uhr; 20:20 Uhr - 20:49 Uhr; 21:10 Uhr - 21:34 Uhr mäßiger Schneefall (WW 73). Von 18:40 Uhr - 18:59 Uhr mäßiger Schneefall, unterbrochen (WW 72). Gegen 02:00 Uhr; 02:30 Uhr - 02:49 Uhr; 03:20 Uhr - 03:59 Uhr; 04:10 Uhr - 04:49 Uhr; Um 05:00 Uhr; 06:00 Uhr - 06:39 Uhr; 07:00 Uhr - 08:40 Uhr; 09:50 Uhr - 18:39 Uhr; 20:50 Uhr - 21:09 Uhr; 21:34 Uhr - 21:59 Uhr leichter Schneefall (WW 71).
A22: 2016-01-21 | B22: -4.5 | C22: -1.7 | D22: -11.1 | E22: 0.1 | F22: 12 | G22: 1.9 | H22: 1027.9 | I22: 0.45 | J22: HM | K22: H Claudius | L22: Von 00:10 Uhr - 00:39 Uhr; 08:00 Uhr - 08:39 Uhr leichter Schneefall (WW 71).
A23: 2016-01-22 | B23: -8.5 | C23: -3.5 | D23: -12.8 | E23: 0.4 | F23: 10 | G23: 2.2 | H23: 1033.6 | I23: 0.45
A24: 2016-01-23 | B24: -1.9 | C24: 3.6 | D24: -6.2 | E24: 8.9 | F24: 16 | H24: 1029.9 | I24: 0.5 | K24: H Dietrich | L24: Von 12:30 Uhr - 13:09 Uhr; 13:30 Uhr - 13:39 Uhr leichte Eiskörner (WW 79). Von 06:30 Uhr - 12:19 Uhr mäßiger Schneefall (WW 73). Von 12:20 Uhr - 12:29 Uhr leichter Schneefall (WW 71). Von 06:00 Uhr - 06:29 Uhr Schneeflocken (WW 70). Von 13:10 Uhr - 13:19 Uhr gefrierender mäßiger Regen (WW 67). Von 20:10 Uhr - 22:19 Uhr leichter Regen (WW 61). Von 13:20 Uhr - 15:49 Uhr; 16:50 Uhr - 17:09 Uhr leichter gefrierender Sprühregen (WW 56). Von 18:30 Uhr - 19:39 Uhr mäßiger Sprühregen (WW 53). Von 17:10 Uhr - 18:09 Uhr; 19:40 Uhr - 20:09 Uhr leichter Sprühregen (WW 51).
A25: 2016-01-24 | B25: 3.2 | C25: 5 | D25: 1.3 | E25: 3.6 | F25: 11 | G25: 0.2 | H25: 1032.8 | I25: 0.5 | J25: Wa | L25: Von 01:10 Uhr - 01:19 Uhr; 22:10 Uhr - 22:29 Uhr leichter Regen (WW 61). Von 22:30 Uhr - 23:09 Uhr Regentropfen (WW 60).
A26: 2016-01-25 | B26: - | C26: - | D26: - | E26: 1 | F26: 6 | H26: - | I26: 0.5 | L26: Von 00:50 Uhr - 02:39 Uhr mäßiger Regen (WW 63). Von 00:00 Uhr - 00:49 Uhr; 03:40 Uhr - 03:49 Uhr; 05:40 Uhr - 05:49 Uhr leichter Regen (WW 61). Von 02:40 Uhr - 03:39 Uhr; 04:40 Uhr - 04:49 Uhr; 05:50 Uhr - 06:19 Uhr Regentropfen (WW 60). Rest fehlt
A27: 2016-01-26 | B27: 7 | C27: 12.3 | D27: 2.3 | E27: 0.1 | F27: 0 | G27: 0.3 | H27: 1023.4 | I27: 0.5 | L27: Gegen 14:10 Uhr leichter Regen (WW 61).
A28: 2016-01-27 | B28: 12.2 | C28: 14.3 | D28: 10.2 | G28: 0.4 | H28: 1017.2 | I28: 0.5 | K28: T Leonie | L28: Von 16:56 Uhr - 17:09 Uhr mäßiger Regen (WW 63 ).
A29: 2016-01-28 | B29: 8.1 | C29: 13.6 | D29: 0.9 | E29: 1.2 | G29: 1.4 | H29: 1019.7 | I29: 0.55 | J29: Wz | L29: Von 09:25 Uhr - 10:09 Uhr mäßiger Regen (WW 63). Um 08:00 Uhr; 08:55 Uhr - 09:04 Uhr; 09:20 Uhr - 09:24 Uhr; 10:10 Uhr - 10:14 Uhr leichter Regen (WW 61).
A30: 2016-01-29 | B30: 5.4 | C30: 11.4 | D30: 0.1 | G30: 0.7 | H30: 1024.7 | I30: 0.55
A31: 2016-01-30 | B31: 7 | C31: 8.7 | D31: 5.1 | E31: 9.6 | H31: 1013.7 | I31: 0.55 | K31: T Marita | L31: Von 18:20 Uhr - 19:09 Uhr; 20:05 Uhr - 21:09 Uhr; Von 23:20 Uhr - 23:59 Uhr mäßiger Regen (WW 63). Von 17:30 Uhr - 17:39 Uhr; 18:00 Uhr - 18:09 Uhr; 19:10 Uhr - 19:34 Uhr; 21:10 Uhr - 21:59 Uhr leichter Regen (WW 61).
A32: 2016-01-31 | B32: 3.9 | C32: 6.1 | D32: 1.4 | E32: 5 | G32: 1.4 | H32: 1009.5 | I32: 0.55 | L32: Von 02:10 Uhr - 02:49 Uhr leichter Schneeregen (WW 68). Von 01:00 Uhr - 01:29 Uhr starker Regen (WW 65). Von 00:00 Uhr - 00:59 Uhr; 01:30 Uhr - 02:09 Uhr mäßiger Regen (WW 63). Von 21:30 Uhr - 22:19 Uhr leichter Regen, unterbrochen (WW 60).
A33: Durchschnitt | B33: =AVERAGE(B2:B32) -> 0.6733333333 | C33: =AVERAGE(C2:C32) -> 3.39 | D33: =AVERAGE(D2:D32) -> -2.356666667 | E33: - | G33: =AVERAGE(G2:G32) -> 1.023529412 | H33: =AVERAGE(H2:H32) -> 1014.07 | I33: =AVERAGE(I2:I32) -> 0.4387096774
A34: Mittel | B34: 0.5 | E34: 45 | F34: - | G34: 64 | H34: 1018.9
A90: 1
A91: 2
A92: 3
A93: 4
A94: 5
A95: 6
A96: 7
A97: 8
A98: 9
A99: 10
A100: 11
A101: 12
A102: 13
A103: 14
A104: 15
A105: 16
A106: 17
A107: 18
A108: 19
A109: 20
A110: 21
A111: 22
A112: 23
A113: 24
A114: 25
A115: 26
A116: 27
A117: 28
A118: 29
A119: 30
A120: 31
